Cogmind - Beta 17 @@@ ROGUE MODE // 2026.07.09 @ 14:39:22 Player: lxealomych Result: Destroyed by H-55 Commando with Gauss Rifle Performance ------------- Evolutions (3) 1500 Regions Visited (6) 1200 Robots Destroyed (65) 325 Value Destroyed (2032) 2032 Prototype IDs (6) 120 Alien Tech Used (0) 0 Bonus (300) 300 TOTAL SCORE: 5477 Bonus ------- Aligned with FarCom 300 Cogmind --------- Core Integrity 0/700 Matter 209/300 Energy 100/100 System Corruption 3% Temperature Cool (0) Movement Core (150) Ox2 Location -7/Factory Parts ------- > --- POWER (1) -------- (None) > --- PROPULSION (4) --- (None) > --- UTILITY (5) ------ Improved Signal Interpreter > --- WEAPON (3) ------- Power Maul Great Axe > --- INVENTORY (5) ---- (None) Peak State ------------ > --- POWER ------------ Heavy Deuterium Engine > --- PROPULSION ------- Carbon-fiber Leg Carbon-fiber Leg Improved Carbon-fiber Leg > --- UTILITY ---------- Improved Heat Sink Large Storage Unit Weapon Shielding Hardened Medium Armor Plating Hardened Medium Armor Plating > --- WEAPON ----------- AWS/Thermal Great Axe > --- INVENTORY -------- Nuclear Core Nuclear Core Light Nuclear Core Medium Storage Unit Lightpack 2.0 Compact Battery Advanced Beam Cannon Firepult Gauss Rifle Mini Assault Cannon Grenade Launcher Scythe [Rating: 53] Favorites ----------- Power Light Ion Engine Engine Light Ion Engine Power Core Light Nuclear Core Propulsion Aluminum Leg Treads Light Treads Leg Aluminum Leg Flight Unit Surge Thruster Utility Large Storage Unit Device Improved Heat Sink Storage Large Storage Unit Processor Advanced Targeting Computer Protection Weapon Shielding Weapon AWS/Thermal Energy Gun AWS/Thermal Energy Cannon Firepult Ballistic Gun Assault Rifle Ballistic Cannon Mini Assault Cannon Launcher Grenade Launcher Impact Weapon Power Maul Slashing Weapon Katana Build | -11 -10 -10 -10 -9 -8 -7 ------- Run | Yrd Mat Min Exi Min Mat Fac Slots Evolved 6 | . . . . . 4 2 Power . | . . . . . . . Propulsion 2 | . . . . . 1 1 Utility 3 | . . . . . 2 1 Weapon 1 | . . . . . 1 . Parts Attached 57 | 4 5 . 4 3 13 28 Power 10 | 1 1 . . 1 2 5 Engine 4 | 1 1 . . 1 . 1 Core 6 | . . . . . 2 4 Reactor . | . . . . . . . Propulsion 14 | 2 . . . 2 4 6 Treads 2 | 2 . . . . . . Leg 8 | . . . . 2 4 2 Wheel . | . . . . . . . Hover . | . . . . . . . Flight 4 | . . . . . . 4 Utility 18 | 1 1 . 2 . 5 9 Device 7 | . . . . . 3 4 Storage 5 | 1 . . 2 . . 2 Processor 2 | . . . . . 1 1 Hackware . | . . . . . . . Protection 4 | . 1 . . . 1 2 Artifact . | . . . . . . . Weapon 15 | . 3 . 2 . 2 8 Energy Gun 2 | . 1 . 1 . . . Energy Cannon 2 | . . . 1 . 1 . Ballistic Gun 3 | . 2 . . . . 1 Ballistic Cannon 1 | . . . . . . 1 Launcher 1 | . . . . . . 1 Special Weapon . | . . . . . . . Impact Weapon 1 | . . . . . . 1 Slashing Weapon 5 | . . . . . 1 4 Piercing Weapon . | . . . . . . . Special Melee Weapon . | . . . . . . . Unidentified Prototypes 5 | . . . 2 . 1 2 Parts Lost 22 | . . . . . 2 20 Power 2 | . . . . . . 2 Propulsion 9 | . . . . . . 9 Utility 9 | . . . . . 2 7 Weapon 2 | . . . . . . 2 Highest Loss Streak 9 | . . . . . 1 9 To Critical Strikes . | . . . . . . . Average Backups 10 | 3 7 8 10 11 11 10 Power 2 | . 1 2 1 2 2 1 Propulsion 1 | 1 2 3 2 2 . . Utility 2 | . . . 2 2 3 3 Weapon 4 | 1 2 3 3 4 5 4 Tool/Special . | . . . . . . . Unused Backups 18 | . 2 . 1 3 6 6 Power 4 | . . . 1 1 2 . Propulsion 2 | . . . . . 1 1 Utility 6 | . 1 . . 2 1 2 Weapon 6 | . 1 . . . 2 3 Tool/Special . | . . . . . . . Average Slot Usage (%) 83 | . 91 100 97 85 87 69 Engine 6 | . 13 14 14 14 4 . Core 3 | . . . . . 4 6 Treads 10 | . 27 28 28 17 . . Leg 12 | . . . . 10 26 13 Device 6 | . . . . . 9 12 Storage 10 | . 14 14 14 14 9 8 Protection 11 | . 8 14 14 14 13 8 Energy Gun 8 | . 13 14 14 14 9 1 Energy Cannon 1 | . . . . . . 3 Ballistic Gun 3 | . 13 14 11 . . 1 Impact Weapon 1 | . . . . . . 4 Slashing Weapon 3 | . . . . . 8 2 Peak Build Rating 53 | 4 7 7 30 27 47 53 Average Rating 30 | 3 6 7 11 26 39 43 On Entrance 17 | . 4 7 7 27 27 47 Avg Prop Armor Cover (%) . | . . . . . . . Naked Turns . | . . . . . . . Heaviest Build 62 | 8 12 12 32 32 45 62 Greatest Support 48 | 40 40 40 40 40 48 48 Greatest Overweight (x) 18 | . 3 . . 1 1 18 Average Overweight (x) . | . . . . . . 2 Largest Inventory Capacity 15 | 8 8 8 15 15 15 15 Average Capacity 13 | 7 8 8 13 15 15 14 Most Carried 15 | 6 8 8 15 15 15 15 Average Carried 12 | 4 7 8 10 14 14 12 Final Capacity 15 | 8 8 8 15 15 15 5 Final Carried 15 | 6 8 8 15 15 15 . Class Distribution -------------------- 57% | Mutant 39% | Scavenger-Mutant 3% | Gunner Dominant Class ---------------- Mutant | -10/Materials Mutant | -10/Mines Mutant | -10/Exiles Mutant | -9/Mines Scavenger-Mutant | -8/Materials Scavenger-Mutant | -7/Factory Resources | -11 -10 -10 -10 -9 -8 -7 ----------- Run | Yrd Mat Min Exi Min Mat Fac Matter Collected 1224 | 233 215 . . 142 155 479 Remotely . | . . . . . . . Salvage Created 2770 | . 348 . . 156 972 1294 Parts 140 | . 18 . . 14 54 54 Haulers Intercepted . | . . . . . . . Recyclers Shooed 2 | . . . . . . 2 Parts Field Recycled . | . . . . . . . Retrieved Matter . | . . . . . . . Parts Self-Destructed . | . . . . . . . Prevented . | . . . . . . . Parts Restored . | . . . . . . . Kills | -11 -10 -10 -10 -9 -8 -7 ------- Run | Yrd Mat Min Exi Min Mat Fac Combat Hostiles Destroyed 44 | . 5 . . 6 19 14 Melee 4 | . . . . . 2 2 Guns 30 | . 5 . . 6 16 3 Cannons 1 | . . . . . . 1 AOE 3 | . . . . . . 3 Classes Destroyed 13 | . 4 . . 2 3 4 Worker 6 | . . . . . . 6 Builder 4 | . . . . . . 4 Recycler 7 | . 1 . . . . 6 Operator 1 | . 1 . . . . . Watcher 3 | . 2 . . . 1 . Swarmer 7 | . . . . 4 3 . Cutter 1 | . . . . . . 1 Grunt 22 | . 5 . . 1 12 4 Duelist 1 | . . . . 1 . . Sentry 3 | . . . . . 1 2 Specialist 2 | . . . . . 2 . Hunter 3 | . . . . . 1 2 Programmer 5 | . . . . . . 5 Best Kill Streak 5 | . 2 . . 4 4 5 Combat Bots Only 4 | . 2 . . 4 4 3 Max Kills in Single Turn 5 | . 1 . . 1 1 5 Gunslinging . | . . . . . . . Exploded 2 | . . . . . . 2 Melee 1 | . . . . . 1 1 Uniques/NPCs Destroyed . | . . . . . . . Combat | -11 -10 -10 -10 -9 -8 -7 -------- Run | Yrd Mat Min Exi Min Mat Fac Hostile Shots Fired 378 | . 31 . . 10 42 295 Missed 131 | . 15 . . 4 11 101 Hits 247 | . 16 . . 6 31 194 Melee 3 | . . . . . . 3 Projectile 244 | . 16 . . 6 31 191 AOE 3 | . . . . 2 . 1 Critical Strikes 12 | . 1 . . . 1 10 Damage Taken 3836 | . 181 . . 110 569 2976 Core 920 | . 34 . . 11 162 713 Absorbed by Shields . | . . . . . . . Redirected to Shielding 49 | . 11 . . 1 25 12 Core Remaining (%) 84 | 100 . . . 82 70 . Volleys Fired 67 | . 30 . . . . 37 Largest 2 | . 2 . . . . 2 Hottest 250 | . 60 . . . . 250 Shots Fired 216 | . 61 . . 15 72 68 Gun 177 | . 61 . . 15 72 29 Cannon 33 | . . . . . . 33 Launcher 6 | . . . . . . 6 Special . | . . . . . . . Kinetic 74 | . 30 . . . . 44 Thermal 136 | . 31 . . 15 72 18 Explosive 6 | . . . . . . 6 Electromagnetic . | . . . . . . . Robot Hit Streak 28 | . 5 . . 5 28 6 Robot Miss Streak 4 | . 4 . . 2 4 4 Penetration Max . | . . . . . . . Secondary Targets 1 | . 1 . . . . . Max Gunslinging Chain 1 | . 1 . . . . . Autonomous 95 | . . . . 15 72 8 Shots Hit Robots 165 | . 32 . . 10 67 56 Core Hits 86 | . 19 . . 7 24 36 Critical Kills 1 | . . . . . . 1 Critical Parts Destroyed 3 | . . . . . . 3 Critical Strikes 8 | . . . . . . 8 Destroy 2 | . . . . . . 2 Blast 2 | . . . . . . 2 Smash 2 | . . . . . . 2 Sever 2 | . . . . . . 2 Melee Attacks 43 | . . . . . 15 28 Impact 19 | . . . . . . 19 Slashing 24 | . . . . . 15 9 Piercing . | . . . . . . . Sneak Attacks 4 | . . . . . . 4 Combat Hostiles 1 | . . . . . . 1 Follow-up Attacks 3 | . . . . . . 3 Damage Inflicted 5263 | . 354 . . 313 1912 2684 Guns 2771 | . 354 . . 313 1684 420 Cannons 615 | . . . . . . 615 Explosions 851 | . . . . . . 851 Melee 1025 | . . . . . 228 797 Ramming 1 | . . . . . . 1 Kinetic 901 | . 193 . . . . 708 Thermal 3156 | . 161 . . 313 1684 998 Explosive 180 | . . . . . . 180 Electromagnetic . | . . . . . . . Impact 480 | . . . . . . 480 Slashing 545 | . . . . . 228 317 Piercing . | . . . . . . . Highest Corruption 4 | . 4 4 4 4 . 3 Average Corruption 3 | . 3 4 4 4 . 2 Corruption Purged 2 | . . . . . . 2 Corruption Blocked . | . . . . . . . Effects 67 | . 12 1 24 15 . 15 Message Errors 19 | . 4 . 7 3 . 5 Matter Fused 17 | . 3 . 7 5 . 2 Heat Flow Errors 6 | . . 1 1 2 . 2 Energy Discharges 7 | . . . 2 4 . 1 Data Loss (minor) 9 | . 4 . 3 1 . 1 Data Loss (major) 5 | . . . 3 . . 2 Misfires 3 | . 1 . . . . 2 Alerts 1 | . . . 1 . . . Overload Shots . | . . . . . . . Overflow Damage 213 | . . . . . . 213 Projectiles 14 | . . . . . . 14 Explosions 5 | . . . . . . 5 Melee 194 | . . . . . . 194 Knockbacks 10 | . . . . . . 10 Impact 4 | . . . . . . 4 Kinetic 6 | . . . . . . 6 Secondary . | . . . . . . . Self-Inflicted Damage 174 | . . . . . . 174 Shots 16 | . . . . . . 16 Rammed 1 | . . . . . . 1 Targets Rammed 1 | . . . . . . 1 Kicked . | . . . . . . . Crushed . | . . . . . . . Highest Temperature 607 | . 36 158 260 202 8 607 Average Temperature 157 | . 16 83 138 96 8 219 Received Heat Transfer 765 | . 120 . . 24 216 405 Effects 12 | . . . . . . 12 Shutdowns 3 | . . . . . . 3 Energy Bleed 2 | . . . . . . 2 Interference 3 | . . . . . . 3 Short Circuit 1 | . . . . . . 1 Damage (minor) 1 | . . . . . . 1 Damage (major) 2 | . . . . . . 2 Siege Activations . | . . . . . . . Martial Activations . | . . . . . . . Shielding Activations . | . . . . . . . Robots Disrupted . | . . . . . . . Combat Hostiles . | . . . . . . . Robots Corrupted 1 | . . . . . . 1 Combat Hostiles 1 | . . . . . . 1 Parts Fried . | . . . . . . . Impact Corruptions 4 | . . . . . . 4 Robots Melted 5 | . . . . . 1 4 Combat Hostiles 5 | . . . . . 1 4 Parts Melted 18 | . 1 . . 1 3 13 Heat Transferred 7193 | . 375 . . 407 2146 4265 Parts Sabotaged . | . . . . . . . Parts Stolen . | . . . . . . . Parts Stripped . | . . . . . . . Power Chain Reactions . | . . . . . . . Alert | -11 -10 -10 -10 -9 -8 -7 ------- Run | Yrd Mat Min Exi Min Mat Fac Maximum Alert Level 1 | . . . . . 1 . Low Security (%) 97 | 100 100 100 . 100 91 100 Level 1 2 | . . . . . 8 . Level 2 . | . . . . . . . Level 3 . | . . . . . . . Level 4 . | . . . . . . . Level 5 . | . . . . . . . High Security . | . . . . . . . Max Security . | . . . . . . . Peak Influence 265 | . 42 . . 111 265 154 Initial 116 | . . . . . 11 116 Average 45 | . 9 . . 24 67 52 Influence Increases 1404 | . 160 . . 144 543 557 Destroy 0b10 Robot/C 880 | . 100 . . 120 380 280 Destroy 0b10 Robot/NC 105 | . 20 . . . 5 80 Destroy Leader 226 | . 34 . . 20 82 90 Successful Hack 18 | . 6 . . . . 12 Disable Machine 45 | . . . . . 15 30 Destroy Structure 40 | . . . . 4 16 20 Lose Combat Pursuer 90 | . . . . . 45 45 Influence Decreases 1404 | . 157 3 . 113 317 814 Entered New Map 164 | . . 3 . . 20 141 Time Decay 1053 | . 157 . . 113 286 497 Lost Part 187 | . . . . . 11 176 Squads Dispatched 16 | . 3 . . . 5 8 Investigation 4 | . 1 . . . 3 . Extermination 4 | . . . . . . 4 Reinforcement 8 | . 2 . . . 2 4 Assault . | . . . . . . . Garrison . | . . . . . . . Intercept . | . . . . . . . Searches Triggered . | . . . . . . . Construction Impeded . | . . . . . . . Haulers Reinforced . | . . . . . . . Active Scanning Responses . | . . . . . . . Cargo Convoy Interrupts 1 | . . . . . . 1 Stealth | -11 -10 -10 -10 -9 -8 -7 --------- Run | Yrd Mat Min Exi Min Mat Fac Distress Signals 2 | . . . . . . 2 Communications Jammed 16 | . . . . . . 16 Distress Signals 16 | . . . . . . 16 Times Spotted 72 | . 10 . . 8 24 30 Peak Tracking Total 6 | . 3 . . 4 4 6 Tactical Retreats 7 | . . . . 1 3 3 Traps | -11 -10 -10 -10 -9 -8 -7 ------- Run | Yrd Mat Min Exi Min Mat Fac Traps Triggered 9 | . 7 . . . 1 1 Indirectly . | . . . . . . . Trap Hack Attempts . | . . . . . . . Triggered . | . . . . . . . Disarmed . | . . . . . . . Reprogrammed . | . . . . . . . Reused . | . . . . . . . Traps Extracted . | . . . . . . . Installed . | . . . . . . . Triggered . | . . . . . . . Machines | -11 -10 -10 -10 -9 -8 -7 ---------- Run | Yrd Mat Min Exi Min Mat Fac Machines Disabled 3 | . . . . . 1 2 Max in Single Turn 1 | . . . . . 1 1 Machines Repaired . | . . . . . . . Machines Dismantled . | . . . . . . . Machines Sabotaged . | . . . . . . . Overloaded Fab Kills . | . . . . . . . Hacking | -11 -10 -10 -10 -9 -8 -7 --------- Run | Yrd Mat Min Exi Min Mat Fac Machines Accessed 9 | . 2 . . . 4 3 Terminals 7 | . 2 . . . 4 1 Fabricators . | . . . . . . . Repair Stations 1 | . . . . . . 1 Recycling Units . | . . . . . . . Scanalyzers 1 | . . . . . . 1 Garrison Access . | . . . . . . . Total Hacks 27 | . 3 . . . 16 8 Successful 7 | . 1 . . . 2 4 Failed 20 | . 2 . . . 14 4 Catastrophic 7 | . 1 . . . 5 1 Database Lockouts . | . . . . . . . Manual 20 | . 3 . 1 . 16 . Terminals 20 | . 3 . . . 16 1 Fabricators . | . . . . . . . Repair Stations 2 | . . . . . . 2 Recycling Units . | . . . . . . . Scanalyzers 5 | . . . . . . 5 Garrison Access . | . . . . . . . Terminal Hacks 4 | . 1 . . . 2 1 Open DSF 1 | . . . . . . 1 Alert Level 2 | . . . . . 2 . Unreport Threat 1 | . 1 . . . . . Fabricator Hacks . | . . . . . . . Repair Station Hacks . | . . . . . . . Recycling Unit Hacks . | . . . . . . . Scanalyzer 3 | . . . . . . 3 Retrieve Study 3 | . . . . . . 3 Garrison Access Hacks . | . . . . . . . Unauthorized Hacks . | . . . . . . . Terminals . | . . . . . . . Fabricators . | . . . . . . . Repair Stations . | . . . . . . . Recycling Units . | . . . . . . . Scanalyzers . | . . . . . . . Garrison Access . | . . . . . . . Data Cores Recovered . | . . . . . . . Used . | . . . . . . . Hacking Detections 8 | . 1 . . . 4 3 Full Trace Events 3 | . 1 . . . 2 . Feedback Events . | . . . . . . . Feedback Blocked . | . . . . . . . Robot Schematics Acquired . | . . . . . . . Robots Built . | . . . . . . . Authchips . | . . . . . . . Time . | . . . . . . . Total Robot Build Rating . | . . . . . . . Part Schematics Acquired . | . . . . . . . Parts Built . | . . . . . . . Authchips . | . . . . . . . Time . | . . . . . . . Total Part Build Rating . | . . . . . . . Part Studies Acquired 3 | . . . . . . 3 Parts Repaired . | . . . . . . . Time . | . . . . . . . Parts Recycled . | . . . . . . . Recycled Matter . | . . . . . . . Retrieved Matter . | . . . . . . . Retrieved Components . | . . . . . . . Parts Scanalyzed . | . . . . . . . Part Schematics Acquired . | . . . . . . . Parts Damaged . | . . . . . . . Bothacking | -11 -10 -10 -10 -9 -8 -7 ------------ Run | Yrd Mat Min Exi Min Mat Fac Used RIF Installer . | . . . . . . . Robots Hacked . | . . . . . . . Non-combat . | . . . . . . . Combat . | . . . . . . . Robot Hacks Applied . | . . . . . . . Relay Couplers Released 3 | . . . . . . 3 Programmers 3 | . . . . . . 3 Fabnet Peak Effective % . | . . . . . . . Robots Rewired . | . . . . . . . Allies Hacked . | . . . . . . . Hacks Repelled . | . . . . . . . Allies | -11 -10 -10 -10 -9 -8 -7 -------- Run | Yrd Mat Min Exi Min Mat Fac Total Allies 2 | . . 2 . . . . Largest Group 2 | . . 2 2 . . . Highest-Rated Group 43 | . . 43 43 . . . Highest-Rated Ally 31 | . . 31 31 . . . Total Orders . | . . . . . . . Ally Attacks . | . . . . . . . Total Damage . | . . . . . . . Kills . | . . . . . . . Allies Corrupted . | . . . . . . . Allies Melted . | . . . . . . . Intel | -11 -10 -10 -10 -9 -8 -7 ------- Run | Yrd Mat Min Exi Min Mat Fac Active Infowar (turns) 1611 | . . . . . 652 959 Structural 652 | . . . . . 652 . Jamming 959 | . . . . . . 959 Robot Analysis Total . | . . . . . . . Derelict Logs Recovered 1 | . . . . 1 . . Drone Launches . | . . . . . . . Drone Recoveries . | . . . . . . . Exploration | -11 -10 -10 -10 -9 -8 -7 ------------- Run | Yrd Mat Min Exi Min Mat Fac Turns Passed 5835 | 74 637 71 939 703 1464 1947 Spaces Moved 2801 | 50 297 45 570 386 732 721 Core 54 | 17 1 . . . . 36 Treads 1196 | 33 296 45 570 252 . . Legs 1461 | . . . . 134 732 595 Wheels . | . . . . . . . Hover . | . . . . . . . Flight 90 | . . . . . . 90 Fastest Speed 29 | 50 160 160 160 160 120 29 Average Speed 181 | 122 160 160 160 170 170 228 Slowest Speed 950 | 160 200 160 160 190 190 950 Overloaded Moves . | . . . . . . . Propulsion Burnouts . | . . . . . . . Robots Hopped . | . . . . . . . Potential Cave-ins . | . . . . . . . Cave-ins Triggered . | . . . . . . . Exploration Rate (%) 41 | 4 45 17 80 82 43 19 Regions Visited 6 Branch Regions 3 Pre-discovered Areas 1 | . . . . 1 . . Known Exits Taken . | . . . . . . . Unknown Exits Taken 6 | 1 1 1 1 1 1 . Scrap Searched 1 | . . . . 1 . . Spaces Dug 6 | . . . . . 3 3 Terrain Destroyed 36 | . . . . 4 16 16 Melee 6 | . . . . . 3 3 Projectile 20 | . . . . 4 13 3 AOE 10 | . . . . . . 10 Terrain Rammed . | . . . . . . . Walls Destroyed . | . . . . . . . Machines Disabled . | . . . . . . . Actions | -11 -10 -10 -10 -9 -8 -7 --------- Run | Yrd Mat Min Exi Min Mat Fac Total 3382 | 62 396 44 603 434 926 917 Wait 270 | . 47 . . 35 139 49 Move 2795 | 49 296 44 569 385 731 721 Hop . | . . . . . . . Pick Up 76 | 9 7 . 18 5 14 23 Fast Attach 16 | 1 8 . . . 2 5 Attach 34 | 3 3 . 3 . 5 20 Detach 4 | . . . . . . 4 Swap 27 | . 2 . 3 3 7 12 Drop 54 | . 3 . 10 6 13 22 Fire 67 | . 30 . . . . 37 Melee 38 | . . . . . 15 23 Ram 1 | . . . . . . 1 Kick . | . . . . . . . Crush . | . . . . . . . Escape Stasis . | . . . . . . . Rewire . | . . . . . . . Trap . | . . . . . . . Miscellaneous . | . . . . . . . Route ------- -11/Scrapyard -10/Materials -10/Mines -10/Exiles (discovered 2 exits: [*Min x2]) -9/Mines -8/Materials -7/Factory History --------- Turn | Location | Event 9 | -11/Scrapyard | Discovered new exit (range 14) 75 | -11/Scrapyard | Entered Materials 309 | -10/Materials | Build established: Mutant 538 | -10/Materials | Discovered new exit (range 12) 712 | -10/Materials | Entered Mines 773 | -10/Mines | Deemed a non-threat by the Exiles lab entrance 773 | -10/Mines | Discovered new exit (range 5) 783 | -10/Mines | Entered Exiles 783 | -10/Exiles | Accompanied by 2 allies 813 | -10/Exiles | Led the pair of lost Derelicts to a safe place 815 | -10/Exiles | Discovered new exit (range 15) 876 | -10/Exiles | Met 8R-AWN 898 | -10/Exiles | Met EX-HEX 1047 | -10/Exiles | Met EX-DEC 1222 | -10/Exiles | Discovered new exit (range 14) 1369 | -10/Exiles | Visited The Gauntlet 1467 | -10/Exiles | Met EX-BIN 1491 | -10/Exiles | Aligned with FarCom system 1493 | -10/Exiles | Given EX-Vault access code 1531 | -10/Exiles | Opened EX-Vault 1538 | -10/Exiles | Found Prototype Storage 1544 | -10/Exiles | Found Prototype Energy Gun 1546 | -10/Exiles | Identified AWS/Thermal 1569 | -10/Exiles | Found Prototype Energy Cannon 1571 | -10/Exiles | Identified Firepult 1609 | -10/Exiles | Warned to stay clear of 0b10 Research branches 1722 | -10/Exiles | Stole three prototypes: AWS/Thermal, Firepult, Lightpack 2.0 1722 | -10/Exiles | Entered Mines 1724 | -9/Mines | Met a Derelict bent on vengeance 1793 | -9/Mines | Learned location of Recycling (-7) 2393 | -9/Mines | Discovered new exit (range 12) 2425 | -9/Mines | Entered Materials 2425 | -8/Materials | Evolved 4 slots: Propulsion x1, Utility x2, Weapon x1 2917 | -8/Materials | Build established: Scavenger-Mutant 3745 | -8/Materials | Discovered new exit (range 11) 3889 | -8/Materials | Entered Factory 3889 | -7/Factory | Evolved 2 slots: Propulsion x1, Utility x1 3891 | -7/Factory | FarCom data flow suspended 3944 | -7/Factory | Identified exit to DSF 4339 | -7/Factory | AWS/Thermal suddenly broke down 4568 | -7/Factory | Lost 3 parts (2n1u) 4712 | -7/Factory | Cargo convoy interrupted 5205 | -7/Factory | Build established: Mutant 5312 | -7/Factory | Identified Lightpack 2.0 5472 | -7/Factory | Lost 4 parts (2n2u) 5622 | -7/Factory | Core integrity fell below 50% 5828 | -7/Factory | Core integrity fell below 20% 5836 | -7/Factory | Destroyed by H-55 Commando with Gauss Rifle Last Messages --------------- 05796_ Slug penetrates Wall. 05816_ Penetrated by Slug. 05816_ Critical hit (Burn: +37). 05821_ FHUTYGWMQE|C#YQ2 7AV06BJ =LEFX 05822_ Slug penetrates Wall. 05822_ Critical hit (Burn: +37). 05824_ Penetrated by Slug. 05824_ Component Analysis Suite destroyed. 05825_ Penetrated by Slug. 05827_ Slug penetrates Wall. 05827_ Power Maul follow-up attack on X-62 Marksman. 05828_ Slug penetrates Wall. 05831_ Sneak attack on X-62 Marksman. 05831_ X-62 Marksman Imp. Carbon-fiber Leg severed. 05833_ Slug penetrates Wall. 05833_ Blade Saw destroyed. 05834_ Slammed into X-62 Marksman. 05834_ Penetrated by Slug. 05834_ Nuclear Core destroyed. 05836_ Penetrated by Slug. Map ----- +----------------------------------------------------+ | ??????????????????## ##"""""####?? !?????????????? | | ???????????????????### ######????????????????????? | | ??????????????????????#??????????????????????????? | | ?????????????????????????????????????????????????? | | ?????????????????????????????????????????????????? | | ?????????????????????????????????????????????????? | | ?????????????????????????????????????????????????? | | ?????????????????????????????????????????????????? | | ????????????????????????????????????????????????"" | | ????????????????????????????????????????????????"" | | ?????????????????????????????????????????????????? | | ?????????????????????????????????????????????????? | | ??????????????????????????????????????????????#### | | ?????????????????????????####+######+########## | | ????????????????????????## | | ???????????????????????? | | ????????????????????????? | | ????????????????????????? | | ?????????????????######+## % | | ?????????????????#! # ############## | | ?????????????????# # #????????????# | | ?????????????????# # #???????????## "" | | ?????????????????# # +???????????# """ | | ?????????????????# !! # #???????????# "F | | ?????????????????# !! #xh #???????????# """ | | ?????????????????# ! @=h #???????????# "" | | ?????????????????###########+#######???????# | | ??????????????????????# #???????# | | ????????????????# ######### ### | | #????????????????????## !!! / #?? | | ?????????????????????#!! !! """ ######+###+#### | | ?????????????????????## !!! """ #????# | | ??????????????????????# """ #????# | | ??????????????????????# #????# "" "" | | ??????????????????????# """ """ #????# "" "" | | ??????????????????????# """ """ #????# """ """ | | ??????????????????????# """ """ #????# """ """? | | ??????????????????????# #????? """ """? | | ??????????????????????# #????? ? ? | | ??????????????????????##############?????##??????? | | | | | | | | | | | | | | | | | | | | | +----------------------------------------------------+ Best States ------------- Heat Dissipation 48 Energy Generation 15 Energy Capacity 440 Matter Stores 300 Matter Capacity 350 Sight Range 16 Terrain Scan Density 10 Jamming Range 12 Armor Coverage 450 Weapon Shielding 33 Evasion (%) 55 Targeting Accuracy 8 Recoil Reduction 2 Item Schematics ----------------- None Robot Schematics ------------------ None Fabricated ------------ Nothing Repaired ---------- Nothing Studied --------- Great Axe | -7/Factory | Hacked Lgt. Nuclear Core | -7/Factory | Hacked Carbon-fiber Leg | -7/Factory | Hacked Alien Tech Used ----------------- None Achievements -------------- Drive-By I Have A Map? It's Just You Total Silence Challenges ------------ None Game ------ Seed SuperdenseGuidanceCutter Manual? 0 Play Time 01:02:59 Cumulative 7.7 hours Start 2026.07.09 @ 13:35:59 End 2026.07.09 @ 14:39:22 Sessions 1 Manual Loads 0 Difficulty Rogue Special Mode None Game No. 6 Rogue 3 Adventurer 3 Explorer 0 Win Type - Total 0 Types 0/0/0/0/0/0/0/0/0/0 Lore% 4 Gallery% 12 Achievement% 12 Wizard Run 0 Options --------- Layout 0 ASCII 0 Keyboard 0 Movement Mouse Keybinds 0 Fullscreen 1 Font 18/SmallcapsGlow Map View 76x50 Zoom Use 0% Tactical HUD 1 Map Filters NONE Filters NONE Steam 1 RUN: 73b50ea8-503d-4092-9f6c-74530c18fb46